{"text_format":"3","workbook":"xlsx","n_sheets":2,"sheets":["Start","Tjänstefaktura"],"not_rendered":{"images":1,"defined_names":1},"read":"whole","date_system":"1900"}

{"sheet":"Start","index":0,"n_rows":8,"n_cols":2,"rows_kept":8}
[null,"OM DEN HÄR MALLEN"]
[null,"Använd den här mallen för att skapa en tjänstefaktura."]
[null,"Fyll i fakturanummer, datum, företagets namn, adress, slogan och information om var fakturan ska skickas."]
[null,"Ange information i tabellerna."]
[null,"Summan beräknas automatiskt åt dig."]
[null,"Obs! "]
[null,"Ytterligare anvisningar finns i kolumn A i kalkylbladet TJÄNSTEFAKTURA. Den här texten har avsiktligt dolts. Om du vill ta bort texten markerar du kolumn A och väljer sedan TA BORT. Om du vill att texten ska visas markerar du kolumn A och ändrar sedan teckenfärg."]
[null,"Om du vill läsa mer om tabeller trycker du på SKIFT och sedan på F10 i en tabell. Välj alternativet TABELL och sedan ALTERNATIV TEXT."]

{"sheet":"Tjänstefaktura","index":1,"n_rows":43,"n_cols":5,"rows_kept":43,"merged":[[0,1,0,2],[0,3,0,4],[1,1,1,4],[2,1,2,3],[3,1,3,3],[4,1,4,2],[5,1,5,2],[6,1,6,2],[7,1,7,2],[41,1,41,2],[41,3,41,4],[42,1,42,4]]}
["Skapa en tjänstefaktura i det här kalkylbladet. Ange företagets logotyp i cellen till höger och rubrik för det här kalkylbladet i cell D1. Anvisningar för hur du använder det här kalkylbladet finns i cellerna i den här kolumnen. Fler anvisningar finns i cell A3.","Platshållare för logotypen finns i den här cellen.",null,"FAKTURA"]
[]
["Ange företagets namn i cellen till höger.","Företagets namn"]
["Ange företagets slogan i cellen till höger.","Företagets slogan"]
["Ange företagets gatuadress i cellen till höger och fakturanummer i cell E5.","Gatuadress",null,"FAKTURANR:","Nr"]
["Ange postnummer och ort i cellen till höger och datum i cell E6.","Postnummer och ort",null,"DATUM ",{"$f":"TODAY()","v":"2019-04-17"}]
["Ange telefon-och faxnummer i cellen till höger och ID i cell E7.","Telefon Fax",null,"KUNDNUMMER ","ID"]
["Ange e-postadress i cellen till höger.","E-post"]
["Etiketten Till finns i cellen till höger. Ange information om var fakturan ska skickas, som namn, företagets namn, adress och telefonnummer, i cell C9 till C13. Fler anvisningar finns i cell A14.","TILL","Namn"]
[null,null,"Företagets namn"]
[null,null,"Gatuadress"]
[null,null,"Postnummer och ort"]
[null,null,"Telefon"]
["Ange information i tabellen Försäljningsinformation som börjar i cellen till höger. Fler anvisningar finns i cell A17.","SÄLJARE","BEFATTNING","BETALNINGSVILLKOR","FÖRFALLODATUM"]
[{"$nulls":3},"Betalas vid leverans"]
[]
["Ange information i tabellen Faktura som börjar i cellen till höger. Delsumma och Summa beräknas automatiskt. Fler anvisningar finns i cell A42.","ANTAL","BESKRIVNING","ENHETSPRIS","RADSUMMA"]
[{"$nulls":4},{"$f":"IF(SUM(B18)>0,SUM(B18*Tjänstefaktura!$D18),\"\")","v":""}]
[{"$nulls":4},{"$f":"IF(SUM(B19)>0,SUM(B19*Tjänstefaktura!$D19),\"\")","v":""}]
[{"$nulls":4},{"$f":"IF(SUM(B20)>0,SUM(B20*Tjänstefaktura!$D20),\"\")","v":""}]
[{"$nulls":4},{"$f":"IF(SUM(B21)>0,SUM(B21*Tjänstefaktura!$D21),\"\")","v":""}]
[{"$nulls":4},{"$f":"IF(SUM(B22)>0,SUM(B22*Tjänstefaktura!$D22),\"\")","v":""}]
[{"$nulls":4},{"$f":"IF(SUM(B23)>0,SUM(B23*Tjänstefaktura!$D23),\"\")","v":""}]
[{"$nulls":4},{"$f":"IF(SUM(B24)>0,SUM(B24*Tjänstefaktura!$D24),\"\")","v":""}]
[{"$nulls":4},{"$f":"IF(SUM(B25)>0,SUM(B25*Tjänstefaktura!$D25),\"\")","v":""}]
[{"$nulls":4},{"$f":"IF(SUM(B26)>0,SUM(B26*Tjänstefaktura!$D26),\"\")","v":""}]
[{"$nulls":4},{"$f":"IF(SUM(B27)>0,SUM(B27*Tjänstefaktura!$D27),\"\")","v":""}]
[{"$nulls":4},{"$f":"IF(SUM(B28)>0,SUM(B28*Tjänstefaktura!$D28),\"\")","v":""}]
[{"$nulls":4},{"$f":"IF(SUM(B29)>0,SUM(B29*Tjänstefaktura!$D29),\"\")","v":""}]
[{"$nulls":4},{"$f":"IF(SUM(B30)>0,SUM(B30*Tjänstefaktura!$D30),\"\")","v":""}]
[{"$nulls":4},{"$f":"IF(SUM(B31)>0,SUM(B31*Tjänstefaktura!$D31),\"\")","v":""}]
[{"$nulls":4},{"$f":"IF(SUM(B32)>0,SUM(B32*Tjänstefaktura!$D32),\"\")","v":""}]
[{"$nulls":4},{"$f":"IF(SUM(B33)>0,SUM(B33*Tjänstefaktura!$D33),\"\")","v":""}]
[{"$nulls":4},{"$f":"IF(SUM(B34)>0,SUM(B34*Tjänstefaktura!$D34),\"\")","v":""}]
[{"$nulls":4},{"$f":"IF(SUM(B35)>0,SUM(B35*Tjänstefaktura!$D35),\"\")","v":""}]
[{"$nulls":4},{"$f":"IF(SUM(B36)>0,SUM(B36*Tjänstefaktura!$D36),\"\")","v":""}]
[{"$nulls":4},{"$f":"IF(SUM(B37)>0,SUM(B37*Tjänstefaktura!$D37),\"\")","v":""}]
[{"$nulls":3},"DELSUMMA",{"$f":"IF(SUM(E18:E37)>0,SUM(E18:E37),\"\")","v":""}]
[{"$nulls":3},"MOMS"]
[{"$nulls":3},"SUMMA",{"$f":"IF(SUM(E38)>0,SUM((E38*E39)+E38),\"\")","v":""}]
[]
["Företagets namn uppdateras automatiskt i cell D42.","Alla checkar ska ställas ut till",null,{"$f":"B3","v":"Företagets namn"}]
["Tackmeddelande finns i cellen till höger.","TACK FÖR DIN BESTÄLLNING!"]